bitfinex/quotes_ETHUSD_20260107
["timestamp","ask_amount","ask_price","bid_price","bid_amount"]
[1767783123740,4.04502206,3217.4,3216.7,1.92563249]
[1767783126259,0.93687861,3217.3,3216.7,1.11063249]
[1767783127872,3.10829292,3217.2,3216.7,1.11063249]
[1767783133027,3.10829292,3217.2,3216.7,0.1770575]
[1767783133756,7.15402608,3217.2,3216.7,0.002]
[1767783134058,4.04573316,3217.2,3216.7,0.002]
[1767783135556,4.04573316,3217.2,3217.0,0.002]
[1767783135853,0.001,3217.1,3217.0,1e-08]
[1767783137634,0.93844024,3217.1,3217.0,1e-08]
[1767783137873,4.04682978,3217.1,3217.0,1e-08]
[1767783139683,0.93844024,3217.1,3217.0,1e-08]
[1767783139834,0.93744024,3217.3,3217.0,1e-08]
[1767783140035,3.10814087,3217.4,3217.0,1e-08]
[1767783140530,0.93744024,3217.5,3217.0,1e-08]
[1767783140531,6.3139419,3218.0,3217.0,0.98585812]
[1767783140842,6.21504038,3218.0,3217.0,0.98585812]
[1767783141158,6.3139419,3218.0,3217.0,0.98585812]
[1767783144267,6.21542668,3217.8,3217.0,0.98585812]
[1767783148078,3.10771334,3217.8,3217.0,0.98585812]
[1767783148377,3.10771334,3217.8,3217.3,0.002]
[1767783148588,3.10771334,3217.8,3217.4,0.98585811]
[1767783148744,0.001,3217.7,3217.4,0.98585811]
[1767783150152,0.001,3217.7,3217.3,0.002]
[1767783152379,0.001,3217.7,3217.3,0.97804426]
[1767783167228,3.10752019,3218.0,3217.6,0.97604426]
[1767783168024,6.21504038,3218.0,3217.6,0.97604426]
[1767783168239,6.21504038,3218.0,3217.3,0.002]
[1767783168240,6.21542668,3217.8,3217.3,0.002]
[1767783168444,0.97851466,3217.5,3216.6,0.97804426]
[1767783168612,0.97851466,3217.5,3216.6,1.79304426]
[1767783168801,0.97851466,3217.5,3216.7,0.97804426]
[1767783169002,0.97851466,3217.5,3216.8,1.4664359]
[1767783169225,0.97969396,3217.6,3216.9,0.97604426]
[1767783171023,0.0011793,3217.6,3216.9,0.97604426]
[1767783171238,3.10912223,3217.6,3216.9,0.97604426]
[1767783171750,3.10912223,3217.6,3217.2,0.97804426]
[1767783172932,0.0011793,3217.6,3217.2,0.97804426]
[1767783174418,0.0011793,3217.6,3217.2,0.97604427]
[1767783175832,7.19374818,3217.9,3217.2,0.97486497]
[1767783176028,3.10780992,3217.7,3217.2,0.97486497]
[1767783178238,7.19398342,3217.8,3217.2,0.97486497]
[1767783180265,4.08624904,3217.8,3217.2,0.97486497]
[1767783180624,3.10773438,3217.8,3217.2,0.97486497]
[1767783182048,0.90416174,3217.7,3216.9,0.002]
[1767783182250,0.90416174,3217.3,3216.9,0.002]
[1767783182543,0.90416174,3217.3,3216.0,3.10939673]
[1767783182718,0.90416174,3217.3,3216.1,0.815]
[1767783183944,0.90416174,3217.3,3216.1,3.92434782]
[1767783184518,0.90416174,3217.1,3216.1,3.92434782]
[1767783186230,0.90416174,3217.1,3216.1,3.10934782]
[1767783186551,0.90416174,3217.1,3216.2,0.815]
[1767783186856,0.90416174,3216.9,3216.2,3.92425293]
[1767783187024,0.90416174,3217.1,3216.5,0.96522913]
[1767783187222,3.10833086,3217.2,3216.6,0.96722913]
[1767783187642,3.1080997,3217.4,3216.6,0.96722913]
[1767783187832,6.2161994,3217.4,3216.6,0.96722913]
[1767783188255,4.01226144,3217.4,3216.6,0.96722913]
[1767783188419,7.12036114,3217.4,3216.6,0.96722913]
[1767783188621,4.01226144,3217.4,3216.6,0.96722913]
[1767783190037,0.90416174,3217.4,3216.6,0.96722913]
[1767783190239,4.01227806,3217.4,3216.7,0.96522913]
[1767783190445,4.01227806,3217.4,3216.8,0.40760722]
[1767783190629,0.90416174,3217.3,3216.7,0.96522913]
[1767783191154,4.01238594,3217.3,3216.7,0.96522913]
[1767783192260,0.90416174,3217.2,3216.6,0.002]
[1767783193858,0.90416174,3217.2,3216.6,0.96722913]
[1767783194441,3.1090194,3217.5,3216.6,0.96722913]
[1767783194442,3.10813747,3217.4,3216.6,0.96722913]
[1767783194632,3.10813747,3217.4,3216.8,0.96522913]
[1767783195433,3.10906511,3217.5,3216.8,0.96522913]
[1767783196143,0.001,3216.9,3216.8,0.96522913]
[1767783196441,0.001,3216.9,3216.7,0.48911953]
[1767783196442,3.10906511,3217.5,3216.9,0.96522913]
[1767783196845,0.001,3217.5,3216.9,0.96522913]
[1767783198646,0.001,3217.5,3217.0,0.96522913]
[1767783199971,0.001,3217.5,3217.1,0.96522913]
[1767783200840,0.90416174,3218.0,3217.3,0.96522913]
[1767783201859,4.01176235,3218.0,3217.3,0.96522913]
[1767783202973,0.90416174,3218.0,3217.3,0.96522913]
[1767783203135,0.90416174,3218.0,3217.4,0.96522913]
[1767783205462,0.90416174,3218.2,3217.5,1.78022913]
[1767783205652,4.01133614,3218.4,3217.6,0.96522913]
[1767783205959,3.10707908,3218.5,3217.7,0.96522913]
[1767783206165,3.10707908,3218.5,3217.8,0.96522913]
[1767783206365,3.10696781,3218.6,3217.8,0.96522913]
[1767783206863,6.21393562,3218.6,3217.8,0.96522913]
[1767783207468,3.10696781,3218.6,3217.8,0.96522913]
[1767783211499,6.45376698,3219.0,3218.5,0.96522913]
[1767783211500,6.45373926,3219.0,3218.5,0.96522913]
[1767783211673,0.9051078,3218.9,3218.4,0.96522913]
[1767783212979,4.011806,3218.9,3218.4,0.96522913]
[1767783213183,0.9051078,3218.9,3218.4,0.96522913]
[1767783213383,6.45375742,3219.0,3218.4,0.96522913]
[1767783213583,3.10559006,3220.0,3218.8,3.99861137]
[1767783213787,0.9051078,3219.9,3218.9,0.815]
[1767783214858,3.10578296,3219.8,3218.9,0.815]
[1767783215983,3.10508217,3220.6,3218.9,0.815]
[1767783215984,7.11493796,3220.7,3218.9,7.02828729]
[1767783216186,0.9051078,3220.6,3219.5,0.9973277]
[1767783216391,0.9051078,3220.6,3219.4,3.99861137]
[1767783216392,0.9051078,3220.6,3219.7,0.9973277]
[1767783216760,0.9051078,3220.5,3219.6,0.815]
[1767783217088,0.9051078,3220.2,3219.6,0.815]
[1767783218087,0.9051078,3221.1,3219.8,0.9973277]
[1767783219054,0.9051078,3221.1,3219.9,0.815]
[1767783219259,6.209059,3221.1,3220.0,0.9973277]
[1767783219489,7.1141668,3221.1,3220.1,0.9973277]
[1767783219682,0.9051078,3221.0,3220.1,0.9973277]
[1767783220712,0.001,3220.8,3220.1,0.9973277]
[1767783221599,0.9051078,3221.6,3220.2,4.10272488]
[1767783221770,0.9051078,3221.6,3220.2,11.20673343]
[1767783222096,0.9051078,3222.4,3220.5,0.9973277]
[1767783222811,0.16209555,3222.6,3220.8,0.9973277]
[1767783222812,1.06720335,3222.6,3220.8,0.9973277]
[1767783222961,0.9051078,3222.4,3221.0,0.9973277]
[1767783223165,3.10296939,3222.8,3221.2,0.9973277]
[1767783223379,3.10262804,3223.1,3221.4,0.9973277]
[1767783223380,0.9051078,3223.0,3221.4,0.9973277]
[1767783224456,0.9051078,3223.0,3221.6,0.9973277]
[1767783224859,0.9051078,3223.0,3220.8,3.98925016]
[1767783224860,0.9051078,3223.0,3220.4,0.9973277]
[1767783225075,0.9051078,3222.4,3220.8,0.9973277]
[1767783225359,3.98925016,3222.5,3220.9,0.9973277]
[1767783225360,0.9051078,3222.2,3220.9,0.9973277]
[1767783225961,0.9051078,3222.2,3221.0,0.9973277]
[1767783227474,7.11223978,3222.1,3221.0,0.9973277]
[1767783227996,0.9051078,3222.0,3221.0,0.9973277]
[1767783228202,0.71122398,3221.9,3221.0,0.9973277]
[1767783228586,1.61633178,3221.9,3221.0,0.9973277]
[1767783229599,3.10385498,3221.8,3221.0,0.9973277]
[1767783229966,6.20770996,3221.8,3221.0,0.9973277]
[1767783230170,7.11281776,3221.8,3221.0,0.9973277]
[1767783230379,7.11281776,3221.8,3220.7,0.9973277]
[1767783230380,1.44813629,3221.7,3220.7,0.9973277]
[1767783230712,1.44813629,3221.7,3220.8,0.9973277]
[1767783231784,3.10404767,3221.6,3220.8,0.9973277]
[1767783231986,0.9051078,3221.5,3220.5,0.9973277]
[1767783232822,0.9051078,3221.5,3220.3,0.814]
[1767783233022,0.9051078,3221.3,3220.3,0.814]
[1767783233699,0.9051078,3221.3,3220.3,1.8113277]
[1767783233872,7.11397406,3221.2,3220.3,0.9973277]
[1767783234501,0.9051078,3221.1,3220.3,0.9973277]
[1767783236183,7.11435958,3221.0,3220.0,0.9973277]
[1767783236395,0.9051078,3220.8,3219.6,3.10595428]
[1767783236610,0.9051078,3220.8,3219.8,0.9973277]
[1767783236977,0.9051078,3220.8,3219.9,1.02838456]
[1767783237213,0.54302849,3220.9,3220.0,0.9973277]
[1767783238198,3.10481867,3220.8,3220.0,0.9973277]
[1767783238887,3.10481867,3220.8,3220.1,0.9973277]
[1767783241487,0.98692035,3220.7,3219.8,0.92593654]
[1767783241685,0.97021549,3221.1,3220.2,0.96480476]
[1767783241909,0.97021549,3221.1,3220.2,0.814]
[1767783242124,6.2089916,3221.2,3220.3,0.96480476]
[1767783242325,0.97021549,3221.1,3220.2,0.814]
[1767783242530,0.97021549,3221.1,3220.2,1.30242736]
[1767783242704,6.2089916,3221.2,3220.3,0.96480476]
[1767783243239,3.10449373,3221.2,3220.3,0.96480476]
[1767783243804,3.10449373,3221.2,3220.3,4.07008667]
[1767783244124,3.10449373,3221.2,3220.4,0.96480476]
[1767783244310,3.10449373,3221.2,3220.4,1.50205616]
[1767783244841,0.001,3221.4,3220.5,0.96480476]
[1767783245036,4.07552294,3221.4,3220.4,3.67549544]
[1767783245338,4.07552294,3221.4,3220.6,0.03105011]
[1767783245568,0.001,3221.4,3220.6,0.99585487]
[1767783245860,0.001,3221.4,3220.8,0.96480476]
[1767783246052,0.001,3221.4,3220.8,1.14579025]
[1767783246860,0.001,3221.4,3220.9,3.10472228]
[1767783247069,0.001,3221.4,3220.8,1.14579025]
[1767783247369,0.001,3221.4,3220.8,4.2506061]
[1767783248276,0.001,3221.4,3220.8,1.14579025]
[1767783248970,0.001,3221.4,3220.8,4.25060286]
[1767783249149,0.001,3221.4,3221.0,0.96480476]
[1767783250328,0.001,3221.4,3220.6,3.10499977]
[1767783250329,0.97121549,3221.4,3220.4,4.07199904]
[1767783250521,0.97121549,3221.4,3220.4,0.96680476]
[1767783250939,4.07455224,3221.3,3220.4,4.07197214]
[1767783251227,0.97021549,3221.2,3220.4,0.002]
[1767783251539,0.97021549,3221.2,3220.4,0.49060438]
[1767783252632,0.97021549,3221.2,3220.4,3.59576779]
[1767783255855,4.07467787,3221.2,3220.4,3.59576779]
[1767783256058,0.97021549,3221.1,3220.4,0.002]
[1767783257665,0.97021549,3221.1,3220.7,0.002]
[1767783258537,0.97021549,3220.9,3220.4,0.002]
[1767783258733,0.97021549,3220.9,3220.0,0.002]
[1767783259044,0.97021549,3220.7,3220.0,0.002]
[1767783260460,0.97021549,3220.5,3220.0,0.002]
[1767783263777,0.97021549,3220.3,3219.2,0.96480476]
[1767783264146,0.97021549,3220.3,3219.3,4.07099714]
[1767783264353,0.97021549,3220.3,3219.4,0.99586644]
[1767783264644,0.97021549,3220.2,3219.4,0.99586644]
[1767783265050,0.97021549,3220.2,3219.4,0.96480476]
[1767783265992,0.97021549,3220.1,3219.3,3.10620984]
[1767783266289,4.07565769,3220.2,3219.4,0.99586644]
[1767783267118,0.97021549,3220.1,3219.4,0.96480476]
[1767783267693,0.97021549,3220.0,3219.1,0.96680476]
[1767783267939,4.07588857,3220.0,3219.1,0.96680476]
[1767783268051,4.07588857,3220.0,3219.1,4.0732572]
[1767783268253,4.07588857,3220.0,3219.2,0.96480476]
[1767783270269,0.97021549,3220.0,3219.4,0.002]
[1767783271876,4.0758432,3220.0,3219.4,0.002]
[1767783272910,0.99569964,3219.9,3219.4,0.002]
[1767783273204,0.99569964,3219.8,3219.1,0.002]
[1767783274470,4.10157906,3219.7,3219.1,0.002]
[1767783274671,0.99569964,3219.6,3219.1,0.002]
[1767783277198,4.10171975,3219.6,3219.1,0.002]
[1767783278300,0.99569964,3219.6,3219.1,0.002]
[1767783278504,0.813,3220.4,3219.1,0.95724201]
[1767783278505,0.99569964,3220.1,3219.1,0.95724201]
[1767783279502,0.99569964,3219.9,3219.1,0.95724201]
[1767783279709,0.99569964,3219.8,3219.1,0.95724201]
[1767783280713,4.10157906,3219.7,3219.1,0.002]
[1767783283116,0.99569964,3219.7,3219.1,0.95724201]
[1767783283686,4.10158819,3219.7,3219.1,0.95724201]
[1767783284118,4.10158819,3219.7,3219.4,0.002]
[1767783284797,0.99569964,3219.7,3219.4,0.002]
[1767783286803,4.10158524,3219.7,3219.4,0.002]
[1767783288812,3.1058856,3219.7,3219.4,0.002]
[1767783292112,3.10578296,3219.8,3219.4,0.002]
[1767783293417,4.51155441,3219.9,3219.4,0.002]
[1767783294513,3.51585477,3219.9,3219.4,0.002]
[1767783295246,6.62158057,3219.9,3219.4,0.002]
[1767783296127,3.51585477,3219.9,3219.4,0.002]
[1767783296515,0.001,3219.6,3219.4,0.002]
[1767783296717,0.001,3219.6,3219.4,0.95724201]
[1767783302080,0.001,3219.6,3219.4,0.002]
[1767783302237,0.99173912,3219.6,3219.1,0.002]
[1767783302430,0.001,3219.6,3219.1,0.97254795]
[1767783304362,0.001,3219.6,3219.1,1.15150275]
[1767783306460,0.99173912,3219.6,3219.1,0.002]
[1767783307559,3.10607237,3219.5,3219.1,0.002]
[1767783309364,0.99073912,3219.5,3219.1,0.002]
[1767783309568,0.001,3219.6,3217.9,0.97054795]
[1767783309569,0.99073912,3219.3,3217.9,0.97054795]
[1767783309863,0.99073912,3219.3,3218.1,0.97054795]
[1767783310168,0.99073912,3219.3,3218.2,0.97054795]
[1767783311477,3.9956482,3219.4,3218.2,0.97054795]
[1767783311478,0.99073912,3219.1,3218.2,0.97054795]
[1767783313877,0.99073912,3218.9,3218.2,0.97054795]
[1767783314963,0.99073912,3218.8,3218.0,1.78554795]
[1767783315336,0.99073912,3218.8,3218.0,0.97054795]
[1767783315849,4.09758349,3218.7,3218.0,0.97054795]
[1767783319072,0.99073912,3218.6,3218.0,0.97054795]
[1767783320045,4.09772146,3218.6,3218.0,0.97054795]
[1767783320258,0.99073912,3218.6,3218.0,0.97054795]
[1767783320465,0.99073912,3219.0,3218.0,0.97054795]
[1767783320647,0.99073912,3218.8,3218.0,0.97054795]
[1767783321462,0.99073912,3218.8,3218.3,0.002]
[1767783322979,3.10684437,3218.7,3218.3,0.002]
[1767783324773,4.09751992,3218.8,3218.3,0.002]
[1767783325782,7.20430072,3218.8,3218.3,0.002]
[1767783325985,7.73818761,3218.8,3218.3,0.002]
[1767783326183,0.99073912,3218.7,3218.0,0.002]
[1767783326994,0.99073912,3218.7,3218.0,0.97254795]
[1767783327196,4.09768002,3218.6,3218.0,0.002]
[1767783328793,0.99073912,3218.5,3218.0,0.002]
[1767783329678,4.09780493,3218.5,3218.0,0.002]
[1767783330197,0.99073912,3218.4,3218.0,0.002]
[1767783330589,0.99073912,3218.3,3217.8,0.002]
[1767783331978,3.10732707,3218.2,3217.8,0.002]
[1767783332378,0.99073912,3218.3,3217.8,0.002]
[1767783333970,0.72036558,3218.4,3217.9,0.92927177]
[1767783334296,3.10706497,3218.5,3218.1,0.002]
[1767783336203,7.12713926,3218.8,3218.1,0.002]
[1767783336620,0.91364356,3218.7,3218.1,0.002]
[1767783339210,3.1069409,3218.6,3218.1,0.002]
[1767783342792,7.12752536,3218.6,3218.1,0.002]
[1767783344217,4.02058446,3218.6,3218.1,0.002]
[1767783344421,0.91364356,3218.5,3218.1,0.002]
[1767783345223,3.1069409,3218.6,3218.1,0.002]
[1767783346225,3.1069409,3218.6,3218.1,0.93127177]
[1767783346425,0.001,3218.3,3218.1,0.93127177]
[1767783347227,0.001,3218.3,3218.1,0.002]
[1767783347427,0.91464356,3218.3,3218.1,0.002]
[1767783347729,0.001,3218.3,3218.1,0.93127177]
[1767783348292,0.001,3218.3,3218.1,1.33515966]
[1767783349227,0.001,3218.3,3218.1,0.93127177]
[1767783351233,0.001,3218.3,3218.1,0.002]
[1767783354096,0.001,3218.3,3218.1,0.93127177]
[1767783370348,4.04040682,3219.0,3218.2,0.98472355]
[1767783370653,0.93379505,3218.9,3218.2,0.98472355]
[1767783370849,0.93379505,3218.9,3218.2,0.40941295]
[1767783371053,0.93379505,3218.9,3218.1,0.002]
[1767783372056,0.93379505,3218.7,3218.1,0.002]
[1767783375460,4.04066317,3218.7,3218.1,0.002]
[1767783375654,0.93379505,3218.6,3218.1,0.002]
[1767783382342,4.0405992,3218.8,3218.1,0.002]
[1767783382542,0.001,3218.3,3218.1,0.002]
[1767783382966,0.93379505,3218.7,3218.2,0.40942002]
[1767783383176,0.93379505,3218.7,3218.1,0.002]
[1767783384075,0.93379505,3218.6,3218.1,0.002]
[1767783385573,0.93379505,3219.1,3218.1,0.002]
[1767783386661,0.93379505,3218.9,3218.1,0.98672355]
[1767783389561,4.04051866,3218.9,3218.1,0.98672355]
[1767783394695,0.96990552,3218.8,3218.1,0.98672355]
[1767783394970,0.96990552,3218.8,3218.1,1.47765058]
[1767783395175,0.001,3218.6,3218.1,1.47765058]
[1767783399062,0.001,3218.6,3218.1,0.98672355]
[1767783400182,0.97090552,3218.6,3218.1,0.002]
[1767783400764,0.001,3218.6,3218.1,0.002]
[1767783400988,0.001,3218.6,3218.1,0.98575754]
[1767783406905,0.001,3218.3,3218.1,0.98575754]
[1767783407114,0.001,3218.3,3218.2,0.40932727]
[1767783408082,0.001,3218.3,3218.2,1.39308481]
[1767783408286,0.96990552,3218.5,3218.2,0.40932727]
[1767783410171,0.96990552,3218.5,3218.1,0.002]
[1767783412710,0.001,3218.6,3218.1,0.002]
[1767783414118,0.001,3218.6,3218.1,0.98575754]
[1767783418415,0.001,3218.3,3218.1,0.98575754]
[1767783420885,0.90524471,3218.6,3218.1,0.002]
[1767783421083,0.83298272,3218.6,3218.1,3.45140306]
[1767783421307,3.10665952,3218.9,3218.2,0.93559172]
[1767783421725,4.07245105,3218.9,3218.2,0.93559172]
[1767783428049,4.07229422,3219.1,3218.3,0.9520423]
[1767783428252,3.10720101,3219.4,3218.5,0.9520423]
[1767783429546,0.001,3219.4,3218.5,0.9520423]
[1767783429853,0.001,3219.4,3218.6,0.9520423]
[1767783434251,0.96679153,3219.4,3218.5,0.002]
[1767783434543,0.96679153,3219.4,3218.5,0.21949724]
[1767783434948,0.96679153,3219.4,3218.5,1.17153954]
[1767783436647,4.07205686,3219.3,3218.5,1.17153954]
[1767783441566,3.10645832,3219.1,3218.5,1.17153954]
[1767783441773,0.96579153,3219.2,3218.5,1.17153954]
[1767783441952,4.07216557,3219.2,3218.6,0.19865395]
[1767783442151,0.001,3219.0,3218.6,0.19865395]
[1767783442351,0.001,3219.0,3218.6,1.15069625]
[1767783444980,0.96679153,3219.0,3218.5,0.002]
[1767783447180,4.0733721,3219.0,3218.5,0.002]
[1767783449789,0.96679153,3219.0,3218.5,0.002]
[1767783466274,0.001,3218.7,3218.5,0.002]
[1767783487322,0.93903497,3218.7,3218.1,0.002]
[1767783489295,3.1069409,3218.6,3218.1,0.002]
[1767783489491,4.04497587,3218.6,3218.1,0.002]
[1767783493210,0.93803497,3218.5,3218.1,0.002]
[1767783495333,4.04508837,3218.5,3218.1,0.002]
[1767783496252,0.93803497,3218.4,3218.1,0.002]
[1767783498038,0.93803497,3218.3,3218.1,0.002]
[1767783498918,4.04508919,3218.5,3218.1,0.002]
[1767783499323,1.6533293,3218.5,3218.1,0.002]
[1767783500538,0.001,3218.7,3218.1,0.96902322]
[1767783500718,0.001,3218.7,3218.3,0.96702322]
[1767783501348,0.001,3218.7,3218.4,0.96902322]
[1767783515060,0.93661792,3218.7,3218.4,0.002]
[1767783517761,0.93561792,3218.6,3218.4,0.002]
[1767783519872,0.93561792,3218.5,3218.1,0.002]
[1767783521167,4.04271048,3218.5,3218.1,0.002]
[1767783521483,0.93561792,3218.4,3218.1,0.002]
[1767783521681,0.93561792,3218.4,3217.8,0.002]
[1767783521982,0.93561792,3218.2,3217.8,0.002]
[1767783522958,3.10709256,3218.5,3217.8,0.97364326]
[1767783524057,0.93561792,3218.5,3217.8,0.97364326]
[1767783526164,3.10787943,3218.7,3217.9,1.00271942]
[1767783526362,0.001,3218.7,3218.1,0.97364326]
[1767783526545,0.93561792,3219.1,3218.3,0.97164326]
[1767783526880,0.93561792,3219.7,3218.3,1.00271556]
[1767783527743,0.93561792,3219.7,3218.3,0.97164326]
[1767783527965,7.14776266,3219.5,3218.5,0.97164326]
[1767783528166,7.14776266,3219.5,3218.6,0.97164326]
[1767783532080,4.04169029,3219.5,3218.6,0.97164326]
[1767783532278,7.14776266,3219.5,3218.6,0.97164326]
[1767783533584,3.10626533,3219.3,3218.6,0.97164326]
[1767783533883,3.10626533,3219.3,3218.7,1.15030759]
[1767783538184,0.001,3219.2,3218.7,1.15030759]
[1767783540811,0.92899933,3219.8,3219.1,0.93808062]
[1767783540961,0.92899933,3219.9,3219.1,0.93808062]
[1767783542576,4.03473444,3219.9,3219.1,0.93808062]
[1767783542805,4.03473444,3219.9,3219.2,0.4859612]
[1767783543486,0.92899933,3219.9,3219.2,1.46677955]
[1767783544000,0.99701185,3220.3,3219.3,0.98081835]
[1767783544705,0.99701185,3220.1,3219.3,4.08701696]
[1767783544911,0.99701185,3220.1,3219.4,0.45729782]
[1767783545902,0.99701185,3220.1,3219.4,1.43811617]
[1767783546221,0.99701185,3220.6,3219.6,0.98081835]
[1767783546909,0.99701185,3220.5,3219.6,0.98081835]
[1767783547506,1.71772016,3220.5,3219.6,0.98081835]
[1767783547901,0.99701185,3220.4,3219.6,0.98081835]
[1767783549306,4.10231259,3220.3,3219.6,0.98081835]
[1767783549918,0.001,3219.8,3219.6,0.98081835]
[1767783551413,3.10539718,3220.2,3219.6,0.98081835]
[1767783551588,4.10233201,3220.3,3219.6,1.51674628]
[1767783552122,0.99701185,3220.2,3219.6,0.53592793]
[1767783552327,0.99701185,3220.2,3219.5,0.815]
[1767783552888,0.99701185,3220.2,3219.5,1.79581835]
[1767783553989,3.10532016,3220.3,3219.6,0.98081835]
[1767783554186,0.99701185,3220.4,3219.6,0.98081835]
[1767783554488,3.10522815,3220.4,3219.6,0.98081835]
[1767783554691,3.10522815,3220.4,3219.8,0.98081835]
[1767783556710,4.10212447,3220.5,3219.8,0.98081835]
[1767783558637,0.99701185,3220.9,3219.9,0.98081835]
[1767783559626,0.99701185,3220.7,3219.9,0.98081835]
[1767783560704,3.10481867,3220.8,3219.9,0.98081835]
[1767783561013,4.10183052,3220.8,3220.0,0.98081835]
[1767783561216,0.99701185,3221.0,3220.0,0.98081835]
[1767783561604,0.001,3220.2,3220.0,0.98081835]
[1767783561807,0.99701185,3220.9,3220.2,0.98081835]
[1767783562002,1.71763088,3220.9,3220.2,0.98081835]
[1767783562614,0.99701185,3220.9,3220.2,0.98081835]
[1767783563923,3.10481867,3220.8,3220.2,0.98081835]
[1767783564732,4.10176497,3220.9,3220.2,0.98081835]
[1767783573234,0.001,3220.6,3220.2,0.98081835]
[1767783578444,0.001,3220.6,3220.1,3.10549309]
[1767783578742,0.001,3220.6,3220.2,0.39204931]
[1767783579351,0.001,3220.6,3220.2,3.49743924]
[1767783580539,0.001,3220.6,3220.2,0.39204931]
[1767783585145,0.001,3220.3,3220.2,0.39204931]
[1767783585318,0.96307994,3220.5,3220.2,0.39204931]
[1767783586021,0.001,3220.6,3220.2,0.39204931]
[1767783587142,0.96307994,3221.4,3220.6,0.91879547]
[1767783587348,0.96307994,3221.4,3220.3,3.99526095]
[1767783587349,0.96307994,3221.3,3220.3,0.814]
[1767783587524,0.96307994,3221.3,3219.9,3.53227504]
[1767783587719,0.96307994,3221.3,3219.8,0.91879547]
[1767783588028,0.96307994,3221.1,3219.7,0.814]
[1767783589051,0.812,3221.0,3219.6,4.02473482]
[1767783589256,0.96307994,3220.8,3219.6,4.02473482]
[1767783589837,0.96307994,3220.8,3219.0,3.10652118]
[1767783589838,0.96307994,3220.2,3218.5,0.91879547]
[1767783590026,3.432,3220.7,3218.5,0.91879547]
[1767783590027,0.96307994,3219.4,3218.5,0.91879547]
[1767783590233,0.96307994,3219.2,3218.5,0.91879547]
[1767783592849,0.96307994,3219.2,3218.5,4.02581457]
[1767783593373,0.96307994,3219.2,3218.6,0.91879547]
[1767783593562,0.96307994,3219.2,3218.7,0.40258146]
[1767783593729,0.812,3219.8,3218.7,0.40258146]
[1767783593730,4.0692677,3219.4,3218.7,0.40258146]
[1767783593933,0.96307994,3219.4,3218.7,0.40258146]
[1767783594229,0.96307994,3219.4,3218.4,0.91879547]
[1767783594230,0.96307994,3219.3,3218.4,0.91879547]
[1767783594770,0.96307994,3219.3,3218.4,4.02590347]
[1767783595070,0.96307994,3219.3,3218.5,0.91879547]
[1767783595664,0.96307994,3219.2,3218.5,0.91879547]
[1767783596438,0.96307994,3219.2,3218.1,3.10935707]
[1767783596654,0.96307994,3219.2,3218.7,0.002]
[1767783597275,0.96307994,3219.2,3218.4,0.002]
[1767783597643,0.96307994,3219.0,3218.4,0.002]
[1767783599637,4.06973128,3218.9,3218.4,0.002]
[1767783600272,3.91933879,3219.3,3218.5,0.95241443]
[1767783600273,0.90418674,3219.3,3218.5,0.95241443]
[1767783600465,3.10616885,3219.4,3218.4,0.002]
[1767783600466,0.90418674,3219.1,3218.4,0.002]
[1767783601673,0.93971675,3218.9,3218.4,0.002]
[1767783601972,0.93971675,3218.9,3218.1,0.95441443]
[1767783603674,4.0464646,3218.8,3218.1,0.95441443]
[1767783604749,0.93971675,3218.7,3218.1,0.002]
[1767783605545,0.93971675,3218.7,3218.1,0.94004875]
[1767783606874,0.93971675,3219.4,3218.1,0.94004875]
[1767783607974,1.75271675,3219.4,3218.1,0.94004875]
[1767783608276,0.93971675,3219.3,3218.1,0.94004875]
[1767783608476,1.11498843,3219.2,3218.1,0.94004875]
[1767783609173,1.75271675,3219.4,3218.1,0.94004875]
[1767783609379,1.75271675,3219.4,3218.5,0.93804875]
[1767783609574,0.813,3219.4,3218.5,0.93804875]
[1767783609877,0.93971675,3219.3,3218.5,0.93804875]
[1767783610079,0.93971675,3219.3,3218.4,0.002]
[1767783610246,0.93971675,3219.1,3218.1,0.002]
[1767783610449,0.93971675,3218.9,3218.1,0.002]
[1767783610646,0.93971675,3218.7,3218.1,0.002]
[1767783612346,0.93971675,3218.7,3218.0,0.002]
[1767783612546,0.93971675,3218.7,3215.7,0.002]
[1767783612547,0.93971675,3218.5,3217.3,0.93804875]
[1767783612798,0.93971675,3218.5,3217.0,0.94004875]
[1767783613084,0.93971675,3218.5,3217.2,0.93804875]
[1767783614158,0.93971675,3218.3,3217.2,0.93804875]
[1767783614360,1.11498843,3218.3,3217.4,0.94004875]
[1767783614580,1.09971675,3219.5,3217.4,0.94004875]
[1767783614778,0.93971675,3219.3,3217.4,0.94004875]
[1767783616577,0.93971675,3219.1,3217.4,0.94004875]
[1767783620784,0.93971675,3218.9,3217.4,0.94004875]
[1767783620981,0.93971675,3218.8,3217.4,0.94004875]
[1767783621366,1.43361535,3218.8,3217.7,0.002]
[1767783621591,0.93971675,3218.7,3217.7,0.002]
[1767783621959,0.93971675,3218.7,3217.7,0.94004875]
[1767783625393,1.11508843,3218.7,3217.7,0.94004875]
[1767783628449,0.001,3218.8,3217.7,0.94004875]
[1767783628562,0.94071675,3218.8,3217.7,0.94004875]
[1767783633504,0.98497489,3218.6,3217.7,0.002]
[1767783633677,0.98497489,3218.6,3217.7,0.91775968]
[1767783633876,0.98597489,3218.6,3217.7,0.91775968]
[1767783636513,0.98597489,3218.6,3217.7,0.002]
[1767783636684,0.98497489,3218.4,3217.7,0.002]
[1767783641808,0.001,3218.6,3217.7,0.002]
[1767783641809,0.98497489,3218.2,3217.7,0.002]
[1767783642187,0.98497489,3218.2,3217.4,0.002]
[1767783642509,0.813,3218.5,3217.2,0.82443969]
[1767783642510,0.7572933,3218.4,3217.2,0.82443969]
[1767783642698,0.7572933,3218.2,3217.2,0.82443969]
[1767783643022,0.15702933,3218.3,3216.7,0.002]
[1767783643023,0.7572933,3218.0,3216.7,0.002]
[1767783643323,0.7572933,3217.8,3216.7,0.91775968]
[1767783645512,0.7572933,3217.6,3216.8,0.91775968]
[1767783646095,0.7572933,3217.6,3217.1,0.002]
[1767783646297,0.15702933,3217.5,3217.1,0.002]
[1767783646496,1.5702933,3217.8,3217.1,0.91775968]
[1767783646816,0.7572933,3217.7,3217.1,0.91775968]
[1767783649810,0.7572933,3217.9,3217.1,0.91775968]
[1767783650117,1.5702933,3217.9,3217.1,0.91775968]
[1767783650318,0.7572933,3217.8,3217.1,0.91775968]
[1767783650514,0.91432263,3217.8,3217.1,0.91775968]
[1767783651021,0.91432263,3217.8,3217.1,0.002]
[1767783653027,0.91432263,3217.8,3216.8,0.002]
[1767783654889,0.7552933,3217.7,3216.8,0.002]